fUSD/lending_fUSD_20260106
["ID","MTS","AMOUNT","RATE_DAILY","PERIOD"]
[400598920,1767738661223,-482.51,0.00043479,30]
[400598921,1767738661232,-555.93,0.00043479,30]
[400598922,1767738661241,-555.93,0.00043479,30]
[400598923,1767738661250,-178.99,0.00043479,30]
[400598924,1767738661259,-479.39,0.00043479,30]
[400598925,1767738661268,-555.93,0.00043479,30]
[400598926,1767738661277,-555.93,0.00043479,30]
[400598927,1767738661286,-178.99,0.00043479,30]
[400598928,1767738661295,-178.99,0.00043479,30]
[400598929,1767738661305,-178.99,0.00043479,30]
[400598930,1767738661314,-171.25,0.00043479,30]
[400598931,1767738661323,-341.73,0.00043479,30]
[400598932,1767738661333,-551.92,0.00043479,30]
[400598933,1767738661342,-338.73,0.00043479,30]
[400598934,1767738661351,-482.51,0.00043479,30]
[400598935,1767738661360,-482.51,0.00043479,30]
[400598936,1767738661370,-482.51,0.00043479,30]
[400598937,1767738661379,-482.51,0.00043479,30]
[400598938,1767738661389,-466.43,0.00043479,30]
[400598939,1767738661398,-466.43,0.00043479,30]
[400598940,1767738661407,-466.43,0.00043479,30]
[400598941,1767738661417,-466.43,0.00043479,30]
[400598942,1767738661426,-466.43,0.00043479,30]
[400598943,1767738661435,-466.43,0.00043479,30]
[400598944,1767738661445,-466.43,0.00043479,30]
[400598945,1767738661455,-466.43,0.00043479,30]
[400598946,1767738661464,-178.99,0.00043479,30]
[400598947,1767738661473,-555.93,0.00043479,30]
[400598948,1767738661482,-171.25,0.00043479,30]
[400598949,1767738661491,-555.93,0.00043479,30]
[400598950,1767738661501,-466.43,0.00043479,30]
[400598951,1767738661509,-466.43,0.00043479,30]
[400598952,1767738661519,-555.93,0.00043479,30]
[400598953,1767738661528,-482.51,0.00043479,30]
[400598954,1767738661537,-178.99,0.00043479,30]
[400598955,1767738661546,-555.93,0.00043479,30]
[400598956,1767738661559,-555.93,0.00043479,30]
[400598957,1767738661569,-171.25,0.00043479,30]
[400598958,1767738661578,-466.43,0.00043479,30]
[400598959,1767738661587,-482.51,0.00043479,30]
[400598960,1767738661599,-150.0,0.00043479,30]
[400598961,1767738661615,-178.99,0.00043479,30]
[400598962,1767738661625,-171.25,0.00043479,30]
[400598963,1767738661640,-555.93,0.00043479,30]
[400598964,1767738661649,-555.93,0.00043479,30]
[400598965,1767738661661,-482.51,0.00043479,30]
[400598966,1767738661682,-466.43,0.00043479,30]
[400598967,1767738661691,-555.93,0.00043479,30]
[400598968,1767738661702,-178.99,0.00043479,30]
[400598969,1767738661714,-171.25,0.00043479,30]
[400598970,1767738661725,-555.93,0.00043479,30]
[400598971,1767738661736,-178.99,0.00043479,30]
[400598972,1767738661746,-482.51,0.00043479,30]
[400598973,1767738661755,-171.25,0.00043479,30]
[400598974,1767738661764,-466.43,0.00043479,30]
[400598975,1767738661774,-661.18,0.00043479,30]
[400598976,1767738661783,-466.43,0.00043479,30]
[400598977,1767738661792,-171.25,0.00043479,30]
[400598978,1767738661802,-178.99,0.00043479,30]
[400598979,1767738661811,-482.51,0.00043479,30]
[400598980,1767738661821,-661.18,0.00043479,30]
[400598981,1767738661831,-178.99,0.00043479,30]
[400598982,1767738661840,-466.43,0.00043479,30]
[400598983,1767738661849,-171.25,0.00043479,30]
[400598984,1767738661859,-482.51,0.00043479,30]
[400598985,1767738661868,-178.99,0.00043479,30]
[400598986,1767738661879,-661.18,0.00043479,30]
[400598987,1767738661888,-466.43,0.00043479,30]
[400598988,1767738661898,-171.25,0.00043479,30]
[400598989,1767738661907,-482.51,0.00043479,30]
[400598990,1767738661918,-171.25,0.00043479,30]
[400598991,1767738661927,-661.18,0.00043479,30]
[400598992,1767738661936,-466.43,0.00043479,30]
[400598993,1767738661946,-482.51,0.00043479,30]
[400598994,1767738661956,-178.99,0.00043479,30]
[400598995,1767738661965,-661.18,0.00043479,30]
[400598996,1767738661975,-466.43,0.00043479,30]
[400598997,1767738661985,-178.99,0.00043479,30]
[400598998,1767738661994,-171.25,0.00043479,30]
[400598999,1767738662004,-661.18,0.00043479,30]
[400599000,1767738662013,-466.43,0.00043479,30]
[400599001,1767738662023,-178.99,0.00043479,30]
[400599002,1767738662032,-171.25,0.00043479,30]
[400599003,1767738662041,-178.99,0.00043479,30]
[400599004,1767738662050,-661.18,0.00043479,30]
[400599005,1767738662060,-466.43,0.00043479,30]
[400599006,1767738662069,-171.25,0.00043479,30]
[400599007,1767738662079,-178.99,0.00043479,30]
[400599008,1767738662088,-171.25,0.00043479,30]
[400599009,1767738662097,-661.18,0.00043479,30]
[400599010,1767738662107,-466.43,0.00043479,30]
[400599011,1767738662116,-178.99,0.00043479,30]
[400599012,1767738662126,-466.43,0.00043479,30]
[400599013,1767738662135,-171.25,0.00043479,30]
[400599014,1767738662145,-466.43,0.00043479,30]
[400599015,1767738662154,-178.99,0.00043479,30]
[400599016,1767738662164,-466.43,0.00043479,30]
[400599017,1767738662175,-466.43,0.00043479,30]
[400599018,1767738662184,-471.29,0.00043479,30]
[400599019,1767738662194,-466.43,0.00043479,30]
[400599020,1767738662204,-297.49,0.00043479,30]
[400599021,1767738662213,-150.0,0.00043479,30]
[400599022,1767738662223,-150.0,0.00043479,30]
[400599023,1767738662233,-466.43,0.00043479,30]
[400599024,1767738662242,-466.43,0.00043479,30]
[400599025,1767738662251,-150.0,0.00043479,30]
[400599026,1767738662261,-150.0,0.00043479,30]
[400599027,1767738662271,-466.43,0.00043479,30]
[400599028,1767738662280,-466.43,0.00043479,30]
[400599029,1767738662289,-150.0,0.00043479,30]
[400599030,1767738662299,-150.0,0.00043479,30]
[400599031,1767738662308,-150.0,0.00043479,30]
[400599032,1767738662317,-466.43,0.00043479,30]
[400599033,1767738662326,-466.43,0.00043479,30]
[400599034,1767738662335,-150.0,0.00043479,30]
[400599035,1767738662345,-150.0,0.00043479,30]
[400599036,1767738662355,-150.0,0.00043479,30]
[400599037,1767738662364,-466.43,0.00043479,30]
[400599038,1767738662374,-150.0,0.00043479,30]
[400599039,1767738662383,-150.0,0.00043479,30]
[400599040,1767738662393,-150.0,0.00043479,30]
[400599041,1767738662403,-466.43,0.00043479,30]
[400599042,1767738662413,-150.0,0.00043479,30]
[400599043,1767738662423,-150.0,0.00043479,30]
[400599044,1767738662432,-150.0,0.00043479,30]
[400599045,1767738662442,-466.43,0.00043479,30]
[400599046,1767738662451,-466.43,0.00043479,30]
[400599047,1767738662460,-466.43,0.00043479,30]
[400599048,1767738662470,-466.43,0.00043479,30]
[400599049,1767738662479,-466.43,0.00043479,30]
[400599050,1767738662488,-466.43,0.00043479,30]
[400599051,1767738662498,-466.43,0.00043479,30]
[400599052,1767738662508,-209.67,0.00043479,30]
[400599053,1767738662517,-1000.0,0.0004348,120]
[400599054,1767738662526,-800.0,0.00043481,16]
[400599055,1767738662535,-800.0,0.00043481,16]
[400599056,1767738662545,-800.0,0.00043481,16]
[400599057,1767738662554,-800.0,0.00043481,16]
[400599058,1767738662565,-800.0,0.00043481,16]
[400599059,1767738662575,-800.0,0.00043481,16]
[400599060,1767738662585,-800.0,0.00043481,16]
[400599061,1767738662594,-800.0,0.00043481,16]
[400599062,1767738662603,-800.0,0.00043482,16]
[400599063,1767738662612,-800.0,0.00043482,16]
[400599064,1767738662622,-800.0,0.00043482,16]
[400599065,1767738662632,-800.0,0.00043482,16]
[400599066,1767738662646,-800.0,0.00043482,16]
[400599067,1767738662655,-800.0,0.00043482,16]
[400599068,1767738662665,-800.0,0.00043482,16]
[400599069,1767738662674,-800.0,0.00043482,16]
[400599070,1767738662684,-300.0,0.00043483,2]
[400599071,1767738662695,-5000.0,0.00043483,30]
[400599072,1767738662705,-5000.0,0.00043486,4]
[400599073,1767738662715,-5000.0,0.00043486,30]
[400599074,1767738662724,-5000.0,0.00043487,2]
[400599075,1767738662733,-5000.0,0.00043487,30]
[400599076,1767738662743,-6642.078655,0.00043488,2]
[400599077,1767738662755,-315394.7656055,0.00043488,2]
[400599078,1767738662772,-1994.8,0.00043488,120]
[400599079,1767738662782,-151.0,0.00043488,120]
[400599080,1767738662791,-151.0,0.00043488,120]
[400599081,1767738662801,-154.45562,0.00043488,120]
[400599082,1767738662810,-151.0,0.00043488,120]
[400599083,1767738662819,-961.385086,0.00043488,120]
[400599084,1767738662829,-151.0,0.00043488,120]
[400599085,1767738662838,-961.385086,0.00043488,120]
[400599086,1767738662848,-151.0,0.00043488,120]
[400599087,1767738662857,-695.829525,0.00043488,120]
[400599088,1767738662868,-961.385086,0.00043488,120]
[400599089,1767738662879,-237.536271,0.00043488,120]
[400599090,1767738662889,-151.0,0.00043488,120]
[400599091,1767738662898,-695.829525,0.00043488,120]
[400599092,1767738662908,-961.385086,0.00043488,120]
[400599093,1767738662918,-151.0,0.00043488,120]
[400599094,1767738662927,-695.829525,0.00043488,120]
[400599095,1767738662938,-695.829525,0.00043488,120]
[400599096,1767738662947,-447.794654,0.00043488,2]
[400599097,1767738662956,-447.794654,0.00043488,2]
[400599098,1767738662966,-731.650557,0.00043488,120]
[400599099,1767738662975,-447.794654,0.00043488,2]
[400599100,1767738662984,-731.650557,0.00043488,120]
[400599101,1767738662994,-447.794654,0.00043488,2]
[400599102,1767738663003,-161.087965,0.00043488,120]
[400599103,1767738663013,-731.650557,0.00043488,120]
[400599104,1767738663022,-151.0,0.00043488,120]
[400599105,1767738663031,-731.650557,0.00043488,120]
[400599106,1767738663041,-255.873066,0.00043488,120]
[400599107,1767738663051,-151.0,0.00043488,120]
[400599108,1767738663061,-151.0,0.00043488,120]
[400599109,1767738663071,-182.702404,0.00043488,120]
[400599110,1767738663081,-182.702404,0.00043488,120]
[400599111,1767738663091,-182.702404,0.00043488,120]
[400599112,1767738663101,-182.702404,0.00043488,120]
[400599113,1767738663114,-1726.9772,0.00043488,120]
[400599114,1767738663124,-1726.9772,0.00043488,120]
[400599115,1767738663135,-1726.9772,0.00043488,120]
[400599116,1767738663144,-1726.9772,0.00043488,120]
[400599117,1767738663154,-1726.9772,0.00043488,120]
[400599118,1767738663164,-185.189839,0.00043488,120]
[400599119,1767738663174,-1097.71992,0.00043488,120]
[400599120,1767738663184,-1097.71992,0.00043488,120]
[400599121,1767738663193,-1097.71992,0.00043488,120]
[400599122,1767738663203,-174.908443,0.00043488,120]
[400599123,1767738663212,-1097.71992,0.00043488,120]
[400599124,1767738663222,-174.908443,0.00043488,120]
[400599125,1767738663231,-174.908443,0.00043488,120]
[400599126,1767738663241,-174.908443,0.00043488,120]
[400599127,1767738663250,-461.76650521,0.0004349,2]
[400599128,1767738663260,-5000.0,0.0004349,7]
[400599129,1767738663270,-5000.0,0.0004349,30]
[400599130,1767738663280,-5000.0,0.0004349,30]
[400599131,1767738663290,-800.0,0.00043491,60]
[400599132,1767738663300,-250.0,0.00043491,45]
[400599133,1767738663310,-2000.0,0.00043491,7]
[400599134,1767738663319,-200.0,0.00043491,7]
[400599135,1767738663329,-1260.0,0.00043491,7]
[400599136,1767738663339,-1260.0,0.00043491,7]
[400599137,1767738663348,-1260.0,0.00043491,7]
[400599138,1767738663358,-1260.0,0.00043491,7]
[400599139,1767738663368,-1260.0,0.00043491,7]
[400599140,1767738663377,-983.9346905,0.00043491,7]
[400599141,1767738663388,-151.0,0.00043491,7]
[400599142,1767738663398,-158.98978226,0.00043491,7]
[400599143,1767738663408,-200.0,0.00043491,7]
[400599144,1767738663418,-200.0,0.00043491,7]
[400599145,1767738663428,-200.0,0.00043491,7]
[400599146,1767738663438,-151.0,0.00043494,120]
[400599147,1767738663448,-290.08099,0.00043494,120]
[400599148,1767738663457,-151.0,0.00043494,120]
[400599149,1767738663467,-151.0,0.00043494,120]
[400599150,1767738663477,-151.0,0.00043494,120]
[400599151,1767738663486,-151.0,0.00043494,120]
[400599152,1767738663495,-151.0,0.00043494,120]
[400599153,1767738663504,-151.0,0.00043494,120]
[400599154,1767738663514,-151.0,0.00043494,120]
[400599155,1767738663523,-151.0,0.00043494,120]
[400599156,1767738663532,-151.0,0.00043494,120]
[400599157,1767738663711,-151.0,0.00043494,120]
[400599158,1767738663721,-151.0,0.00043494,120]
[400599159,1767738663730,-151.0,0.00043494,120]
[400599160,1767738663739,-151.0,0.00043494,120]
[400599161,1767738663749,-151.0,0.00043494,120]
[400599162,1767738663758,-151.0,0.00043494,120]
[400599163,1767738663767,-151.0,0.00043494,120]
[400599164,1767738663776,-151.0,0.00043494,120]
[400599165,1767738663786,-151.0,0.00043494,120]
[400599166,1767738663795,-151.0,0.00043494,120]
[400599167,1767738663804,-151.0,0.00043494,120]
[400599168,1767738663813,-151.0,0.00043494,120]
[400599169,1767738663823,-151.0,0.00043494,120]
[400599170,1767738663832,-151.0,0.00043494,120]
[400599171,1767738663842,-151.0,0.00043494,120]
[400599172,1767738663851,-151.0,0.00043494,120]
[400599173,1767738663861,-151.0,0.00043494,120]
[400599174,1767738663870,-281.409576,0.00043494,120]
[400599175,1767738663880,-151.0,0.00043494,120]
[400599176,1767738663890,-159.874682,0.00043494,120]
[400599177,1767738663900,-151.0,0.00043494,120]
[400599178,1767738663909,-151.0,0.00043494,7]
[400599179,1767738663918,-151.0,0.00043494,7]
[400599180,1767738663928,-151.0,0.00043494,7]
[400599181,1767738663937,-151.0,0.00043494,7]
[400599182,1767738663947,-151.0,0.00043494,7]
[400599183,1767738663956,-151.0,0.00043494,7]
[400599184,1767738663965,-151.0,0.00043494,120]
[400599185,1767738663974,-151.0,0.00043494,120]
[400599186,1767738663983,-151.0,0.00043494,120]
[400599187,1767738663993,-151.0,0.00043494,120]
[400599188,1767738664004,-154.475689,0.00043494,120]
[400599189,1767738664014,-1151.94153626,0.00043494,30]
[400599190,1767738664023,-1151.94153626,0.00043494,30]
[400599191,1767738664032,-500.0,0.000435,120]
[400599192,1767738664041,-500.0,0.000435,120]
[400599193,1767738664051,-500.0,0.000435,120]
[400599194,1767738664060,-500.0,0.000435,120]
[400599195,1767738664069,-500.0,0.000435,120]
[400599196,1767738664078,-500.0,0.000435,120]
[400599197,1767738664087,-500.0,0.000435,120]
[400599198,1767738664097,-500.0,0.000435,120]
[400599199,1767738664107,-500.0,0.000435,120]
[400599200,1767738664116,-500.0,0.000435,120]
[400599201,1767738664125,-500.0,0.000435,120]
[400599202,1767738664135,-500.0,0.000435,120]
[400599203,1767738664144,-517.1,0.000435,120]
[400599204,1767738664152,-199.17781272,0.000435,45]
[400599205,1767738664162,-160.0,0.000435,48]
[400599206,1767738664171,-250.0,0.000435,120]
[400599207,1767738664180,-250.0,0.000435,120]
[400599208,1767738664189,-250.0,0.000435,120]
[400599209,1767738664198,-250.0,0.000435,120]
[400599210,1767738664208,-250.0,0.000435,120]
[400599211,1767738664217,-250.0,0.000435,120]
[400599212,1767738664227,-250.0,0.000435,120]
[400599213,1767738664236,-250.0,0.000435,120]
[400599214,1767738664245,-250.0,0.000435,120]
[400599215,1767738664255,-250.0,0.000435,120]
[400599216,1767738664263,-250.0,0.000435,120]
[400599217,1767738664272,-250.0,0.000435,120]
[400599218,1767738664281,-250.0,0.000435,120]
[400599219,1767738664291,-250.0,0.000435,120]
[400599220,1767738664300,-250.0,0.000435,120]
[400599221,1767738664309,-250.0,0.000435,120]
[400599222,1767738664318,-250.0,0.000435,120]
[400599223,1767738664327,-250.0,0.000435,120]
[400599224,1767738664336,-250.0,0.000435,120]
[400599225,1767738664346,-250.0,0.000435,120]
[400599226,1767738664355,-250.0,0.000435,120]
[400599227,1767738664364,-250.0,0.000435,120]
[400599228,1767738664373,-250.0,0.000435,120]
[400599229,1767738664383,-250.0,0.000435,120]
[400599230,1767738664392,-250.0,0.000435,120]
[400599231,1767738664401,-301.9,0.000435,120]
[400599232,1767738664411,-160.0,0.000435,48]
[400599233,1767738664420,-978.0,0.000435,30]
[400599234,1767738664430,-612.0,0.000435,30]
[400599235,1767738664440,-200.0,0.000435,30]
[400599236,1767738664449,-300.0,0.000435,30]
[400599237,1767738664459,-151.0,0.00043506,120]
[400599238,1767738664469,-151.0,0.00043506,120]
[400599239,1767738664478,-151.0,0.00043506,120]
[400599240,1767738664487,-151.0,0.00043506,120]
[400599241,1767738664497,-151.0,0.00043506,120]
[400599242,1767738664506,-151.0,0.00043506,120]
[400599243,1767738664515,-151.0,0.00043506,120]
[400599244,1767738664524,-151.0,0.00043506,120]
[400599245,1767738664533,-154.72784194,0.00043506,120]
[400599246,1767738664543,-151.0,0.00043506,120]
[400599247,1767738664553,-993.472291,0.00043508,120]
[400599248,1767738664562,-2698.972455,0.00043508,120]
[400599249,1767738664575,-2698.972455,0.00043508,120]
[400599250,1767738664585,-993.472291,0.00043508,120]
[400599251,1767738664595,-151.0,0.00043508,120]
[400599252,1767738664604,-2698.972455,0.00043508,120]
[400599253,1767738664614,-2698.972455,0.00043508,120]
[400599254,1767738664625,-552.599779,0.00043508,15]
[400599255,1767738664638,-242.109031,0.00043508,120]
[400599256,1767738664647,-993.472291,0.00043508,120]
[400599257,1767738664657,-552.599779,0.00043508,15]
[400599258,1767738664667,-242.109031,0.00043508,120]
[400599259,1767738664678,-993.472291,0.00043508,120]
[400599260,1767738664687,-552.599779,0.00043508,15]
[400599261,1767738664697,-242.109031,0.00043508,120]
[400599262,1767738664707,-552.599779,0.00043508,15]
[400599263,1767738664718,-242.109031,0.00043508,120]
[400599264,1767738664728,-152.729497,0.00043508,120]
[400599265,1767738664738,-152.729497,0.00043508,120]
[400599266,1767738664747,-152.729497,0.00043508,120]
[400599267,1767738664756,-152.729497,0.00043508,120]
[400599268,1767738664765,-151.0,0.00043508,120]
[400599269,1767738664775,-151.0,0.00043508,120]
[400599270,1767738664785,-412.123505,0.00043508,120]
[400599271,1767738664794,-412.123505,0.00043508,120]
[400599272,1767738664803,-412.123505,0.00043508,120]
[400599273,1767738664813,-412.123505,0.00043508,120]
[400599274,1767738664822,-151.0,0.00043508,7]
[400599275,1767738664831,-151.0,0.00043508,7]
[400599276,1767738664840,-151.0,0.00043508,7]
[400599277,1767738664850,-162237.35654624,0.00043508,30]
[400599278,1767738664859,-1570341.68546591,0.00043509,7]
[400599279,1767738665769,-149950.67311358,0.00043509,7]
[400599280,1767738667418,-174.15242096,0.00017906,2]
[400599281,1767738667427,-166.049294,0.000247,7]
[400599282,1767738667436,-135.57428504,0.000247,7]
[400599283,1767738667468,-30.47500896,0.000247,7]
[400599284,1767738667477,-500.13510635,0.00026471,2]
[400599285,1767738667486,-575.574485,0.00031507,31]
[400599286,1767738667495,-1484.882227,0.00031507,31]
[400599287,1767738667505,-804.177218,0.00031507,31]
[400599288,1767738667514,-166.049294,0.00033,31]
[400599289,1767738667523,-575.574485,0.00033,31]
[400599290,1767738667533,-166.049294,0.00033,31]
[400599291,1767738667542,-542.722659,0.00033,31]
[400599292,1767738667803,-46.2706361,0.00033,31]
[400599293,1767738667815,-895.8889319,0.00033,31]
[400599294,1767738667824,-760.51285406,0.00033,31]
[400599295,1767738668813,-611.755986,0.00017903,2]
[400599296,1767738669491,-4281.87359996,0.00017903,2]
[400599297,1767738669564,-5050.25238081,0.00017903,2]
[400599298,1767738669574,-166.049294,0.000247,7]
[400599299,1767738669584,-1484.882227,0.00031507,31]
[400599300,1767738669596,-575.574485,0.00031507,31]
[400599301,1767738669606,-231.35848765,0.00031507,31]
[400599302,1767738669617,-572.81873035,0.00031507,31]
[400599303,1767738669626,-272.28958041,0.00031507,31]
[400599304,1767738669645,-669.07655991,0.00031507,31]
[400599305,1767738711301,207.0,9.989e-05,2]
[400599306,1767738711642,207.0,9.989e-05,2]
[400599307,1767738712241,52.43,9.989e-05,2]
[400599308,1767738712266,154.57,9.989e-05,2]
[400599309,1767738712563,64.78995196,9.989e-05,2]
[400599310,1767738712589,142.21004804,9.989e-05,2]
[400599311,1767738713020,84.96759396,9.989e-05,2]
[400599312,1767738713046,122.03240604,9.989e-05,2]
[400599313,1767738713226,89.11230449,9.989e-05,2]
[400599314,1767738713252,117.88769551,9.989e-05,2]
[400599315,1767738713463,207.0,9.989e-05,2]
[400599316,1767738713716,207.0,9.989e-05,2]
[400599332,1767738920967,-250.0,0.00017,2]
[400599333,1767738920990,-334.16143976,0.000178,2]
[400599337,1767738951575,-40.93989002,0.000178,2]
[400599338,1767738951598,-151.0,0.00017873,2]
[400599339,1767738951621,-114.50064822,0.00017873,2]
[400599340,1767738965794,-36.49935178,0.00017873,2]
[400599341,1767738965816,-151.0,0.00017883,2]
[400599342,1767738965839,-95.47226003,0.00017883,2]
[400599344,1767738980795,-55.52773997,0.00017883,2]
[400599345,1767738980821,-180.81319272,0.00017899,2]
[400599346,1767738983376,-300.0,0.00017899,2]
[400599347,1767738984946,-160.85018783,0.00017899,2]
[400599348,1767738986972,-386.58672943,0.00017899,2]
[400599349,1767738990977,-171.74989002,0.00017899,2]
[400599350,1767738991000,-9.25958799,0.00017899,2]
[400599351,1767738995056,-318.99052199,0.000178,2]
[400599352,1767739014213,-4848.33835278,0.000178,2]
[400599353,1767739014239,-290.74041201,0.00017899,2]
[400599354,1767739014266,-550.0,0.00017899,2]
[400599355,1767739014296,-500.0,0.00017899,2]
[400599356,1767739014327,-500.0,0.00017899,2]
[400599357,1767739014360,-500.0,0.00017899,2]
[400599358,1767739014391,-500.0,0.00017899,2]
[400599359,1767739014421,-500.0,0.00017899,2]
[400599360,1767739014660,-500.0,0.00017899,2]
[400599361,1767739014690,-500.0,0.00017899,2]
[400599362,1767739014718,-500.0,0.00017899,2]
[400599363,1767739014749,-500.0,0.00017899,2]
[400599364,1767739014778,-500.0,0.00017899,2]
[400599365,1767739014805,-500.0,0.00017899,2]
[400599366,1767739014832,-500.0,0.00017899,2]
[400599367,1767739014859,-500.0,0.00017899,2]
[400599368,1767739014887,-500.0,0.00017899,2]
[400599369,1767739014916,-560.05696589,0.00017899,2]
[400599370,1767739014940,-555.6722184,0.00017899,2]
[400599371,1767739014967,-500.0,0.00017899,2]
[400599372,1767739014996,-500.0,0.00017899,2]
[400599373,1767739015023,-277.61553044,0.00017899,2]
[400599374,1767739015051,-1000000.0,0.000179,2]
[400599375,1767739015074,-1000.0,0.000179,2]
[400599376,1767739015097,-2500.0,0.000179,2]
[400599377,1767739015120,-5176.1897,0.000179,2]
[400599378,1767739015142,-250.0,0.00017903,2]
[400599379,1767739015165,-250.0,0.00017904,2]
[400599380,1767739015189,-151.0,0.00017905,2]
[400599381,1767739015213,-151.0,0.00017905,2]
[400599382,1767739015237,-151.0,0.00017929,2]
[400599383,1767739015261,-151.0,0.00017929,2]
[400599384,1767739015285,-151.0,0.00017932,2]
[400599385,1767739015310,-151.0,0.00017932,2]
[400599386,1767739015336,-500.0,0.00017973,2]
[400599387,1767739015360,-500.0,0.00017973,2]
[400599388,1767739015386,-500.0,0.00017973,2]
[400599389,1767739015410,-161.85541297,0.00017973,2]
[400599390,1767739015435,-500.0,0.00017973,2]
[400599391,1767739015460,-500.0,0.00017973,2]
[400599392,1767739015485,-500.0,0.00017973,2]
[400599393,1767739015509,-167.49996956,0.00017973,2]
[400599394,1767739015533,-501.17771688,0.00017973,2]
[400599395,1767739015557,-173.16129252,0.00017973,2]
[400599396,1767739015580,-501.12875633,0.00017973,2]
[400599397,1767739015605,-500.0,0.00017973,2]
[400599398,1767739015629,-500.0,0.00017973,2]
[400599399,1767739015656,-500.0,0.00017973,2]
[400599400,1767739015682,-500.0,0.00017973,2]
[400599401,1767739015706,-501.42268464,0.00017973,2]
[400599402,1767739015732,-216.85816302,0.00017973,2]
[400599403,1767739015756,-500.0,0.00017973,2]
[400599404,1767739015781,-500.0,0.00017973,2]
[400599405,1767739015806,-500.0,0.00017973,2]
[400599406,1767739015830,-500.77367264,0.00017973,2]
[400599407,1767739015854,-165.66093184,0.00017973,2]
[400599408,1767739015878,-500.0,0.00017973,2]
[400599409,1767739015902,-480.04186632,0.00017973,2]
[400599410,1767739015925,-500.0,0.00017973,2]
[400599411,1767739015950,-500.0,0.00017973,2]
[400599412,1767739015974,-500.0,0.00017973,2]
[400599413,1767739015998,-164.07746879,0.00017973,2]
[400599414,1767739016023,-1276.45,0.00017973,2]
[400599415,1767739016046,-500.0,0.00017999,2]
[400599416,1767739016073,-500.0,0.00017999,2]
[400599417,1767739016098,-500.0,0.00017999,2]
[400599418,1767739016234,500.0,0.00017899,2]
[400599419,1767739016270,469.41086295,0.00017899,2]
[400599420,1767739018413,151.0,0.00017919,2]
[400599421,1767739018726,151.0,0.00017919,2]
[400599426,1767739115946,-470.60357453,0.000176,2]
[400599428,1767739153280,-300.0,0.00017599,2]
[400599435,1767739171795,1048.0,0.00032876,120]
[400599439,1767739240737,1000.0,0.0003287,120]
[400599440,1767739242020,1000.0,0.0003287,120]
[400599441,1767739243140,1000.0,0.0003287,120]
[400599442,1767739244135,1000.0,0.0003287,120]
[400599443,1767739245116,1000.0,0.0003287,120]
[400599450,1767739302408,598.72135335,0.00032877,120]
[400599451,1767739314276,500.0,0.00032877,120]
[400599456,1767739343583,500.0,0.00032877,120]
[400599463,1767739371037,1103.0,0.00032877,120]
[400599471,1767739457965,1199.79,0.00024898,120]
[400599472,1767739458153,1199.79,0.00027161,120]
[400599480,1767739508728,197.0,0.00032028,120]
[400599497,1767739767108,-1200.0,0.00017599,2]
[400599498,1767739767429,-300.0,0.00017599,2]